bitfinex/quotes_SOLUSD_20250815
["timestamp","ask_amount","ask_price","bid_price","bid_amount"]
[1755256937555,84.12033592,194.78,194.77,0.03]
[1755256938679,79.84146112,194.78,194.77,0.03]
[1755256938859,84.12246912,194.78,194.77,0.03]
[1755256939185,83.46246912,194.78,194.77,0.03]
[1755256939785,113.46246912,194.78,194.77,0.03]
[1755256940158,109.18146112,194.78,194.77,0.03]
[1755256940681,3.42734939,194.78,194.77,0.03]
[1755256940871,39.72734939,194.78,194.77,0.13]
[1755256941454,39.72734939,194.78,194.77,0.03]
[1755256942890,44.86134672,194.78,194.77,0.03]
[1755256943386,79.84146112,194.78,194.77,0.03]
[1755256943586,79.84146112,194.78,194.76,0.03]
[1755256943760,44.12592065,194.77,194.76,1e-08]
[1755256944154,38.40746379,194.77,194.75,1e-08]
[1755256944391,48.70746379,194.76,194.75,1e-08]
[1755256944869,78.70746379,194.76,194.75,1e-08]
[1755256945062,83.84198833,194.76,194.74,1e-08]
[1755256945264,26.0,194.73,194.67,0.03]
[1755256945458,7.71240913,194.72,194.67,8.3501144]
[1755256945687,52.99252353,194.72,194.67,0.03]
[1755256946191,48.70746379,194.72,194.67,0.03]
[1755256946563,52.51577316,194.72,194.67,0.03]
[1755256947183,57.65135245,194.72,194.67,0.03]
[1755256948487,61.93303142,194.72,194.67,0.03]
[1755256948865,63.3644504,194.72,194.67,0.03]
[1755256949100,44.00882071,194.71,194.67,0.03]
[1755256949299,3.42734939,194.7,194.67,0.03]
[1755256949667,12.40746379,194.7,194.67,0.03]
[1755256949863,16.68893511,194.7,194.67,0.03]
[1755256950085,12.40746379,194.7,194.67,0.03]
[1755256950294,16.21577316,194.7,194.67,0.03]
[1755256951290,26.0,194.68,194.67,0.03]
[1755256951604,74.04746379,194.68,194.67,0.03]
[1755256951895,74.70746379,194.68,194.67,0.03]
[1755256952281,78.98055878,194.68,194.67,0.03]
[1755256952676,84.11719325,194.68,194.67,0.03]
[1755256954901,84.11719325,194.68,194.66,0.2]
[1755256955082,46.67521571,194.67,194.66,0.2]
[1755256955395,16.67521571,194.67,194.66,0.2]
[1755256955696,16.67521571,194.67,194.66,1e-08]
[1755256956602,16.67521571,194.67,194.65,1e-08]
[1755256956901,41.43663447,194.68,194.65,1e-08]
[1755256956902,79.84462602,194.66,194.65,1e-08]
[1755256958273,109.84462602,194.66,194.65,1e-08]
[1755256959775,26.0,194.62,194.54,0.13]
[1755256959994,8.3201144,194.55,194.51,0.13]
[1755256960193,4.25853714,194.58,194.51,0.13]
[1755256960194,39.72734939,194.54,194.51,0.13]
[1755256960396,39.72734939,194.53,194.51,0.13]
[1755256960603,36.3,194.53,194.51,0.13]
[1755256960808,36.3,194.53,194.52,0.13]
[1755256961107,39.70474329,194.53,194.52,0.13]
[1755256961479,3.40474329,194.53,194.52,0.13]
[1755256961710,3.40474329,194.53,194.52,13.59097395]
[1755256961879,3.40455992,194.55,194.52,13.59097395]
[1755256962084,36.42,194.57,194.54,8.3201144]
[1755256962279,3.40492863,194.56,194.54,0.13]
[1755256962505,3.40492863,194.55,194.54,8.4501144]
[1755256963290,131.9,194.61,194.54,8.4501144]
[1755256963505,39.8236893,194.6,194.57,8.3201144]
[1755256963689,3.4036893,194.59,194.57,8.3201144]
[1755256964009,3.4036893,194.58,194.57,8.3201144]
[1755256964521,3.4036893,194.58,194.57,8.4501144]
[1755256964717,3.4036893,194.58,194.57,0.13]
[1755256965518,39.8236893,194.58,194.54,0.13]
[1755256965717,39.8236893,194.58,194.53,13.49067613]
[1755256965718,3.4036893,194.57,194.53,13.49067613]
[1755256965888,39.8036893,194.56,194.54,8.4501144]
[1755256966089,3.4036893,194.55,194.54,8.4501144]
[1755256966593,36.42,194.58,194.54,8.4501144]
[1755256966803,3.40217478,194.57,194.55,0.13]
[1755256967011,36.42,194.58,194.56,8.3201144]
[1755256967193,3.40225741,194.57,194.56,8.3201144]
[1755256968311,3.40225741,194.57,194.56,13.58991703]
[1755256968786,3.40225741,194.57,194.56,5.26980263]
[1755256968988,3.40225741,194.57,194.56,13.58991703]
[1755256969226,3.40225741,194.57,194.56,8.4501144]
[1755256969904,3.40225741,194.57,194.56,8.3201144]
[1755256970519,3.40225741,194.57,194.56,13.58991703]
[1755256970699,3.40225741,194.57,194.56,13.45991703]
[1755256971020,3.40225741,194.57,194.56,13.58991703]
[1755256971631,3.40225741,194.57,194.56,13.45991703]
[1755256972325,3.40225741,194.57,194.56,5.13980263]
[1755256972506,3.40225741,194.57,194.56,13.45991703]
[1755256975622,4.06225741,194.57,194.55,8.3501144]
[1755256975825,3.40225741,194.56,194.55,8.3501144]
[1755256976026,3.40225741,194.56,194.55,0.03]
[1755256976624,4.06225741,194.56,194.55,0.03]
[1755256977825,3.40225741,194.56,194.55,0.03]
[1755256978231,4.06225741,194.56,194.55,0.03]
[1755256979254,9.20206004,194.56,194.55,0.03]
[1755256979627,4.06225741,194.56,194.55,0.03]
[1755256980628,4.06528851,194.56,194.55,0.03]
[1755256981206,3.40528851,194.56,194.55,0.03]
[1755256981530,3.40528851,194.56,194.55,8.3501144]
[1755256981730,3.40528851,194.56,194.55,8.4801144]
[1755256981925,3.40528851,194.56,194.55,8.3501144]
[1755256982231,4.10528851,194.56,194.55,8.3501144]
[1755256982525,3.40528851,194.56,194.55,8.3501144]
[1755256983119,3.40528851,194.56,194.55,8.4801144]
[1755256984038,3.40528851,194.56,194.55,13.49018122]
[1755256984407,36.38,194.6,194.55,13.49018122]
[1755256984627,3.41016934,194.59,194.56,0.13]
[1755256984826,0.06,194.61,194.58,8.3201144]
[1755256985027,0.06,194.61,194.6,8.3201144]
[1755256985232,3.47181673,194.61,194.6,8.3201144]
[1755256985432,4.17181673,194.61,194.6,8.3201144]
[1755256985836,4.17181673,194.61,194.55,18.02023387]
[1755256986014,0.76,194.61,194.6,8.3201144]
[1755256986216,4.17343842,194.61,194.6,8.3201144]
[1755256986914,4.17343842,194.61,194.57,8.3201144]
[1755256987114,4.11343842,194.6,194.57,8.3201144]
[1755256987314,4.11343842,194.59,194.57,8.3201144]
[1755256987512,3.41343842,194.58,194.57,8.3201144]
[1755256989266,13.50936183,194.58,194.55,8.3501144]
[1755256989540,40.51343842,194.57,194.55,0.03]
[1755256989719,3.41343842,194.56,194.55,0.03]
[1755256990046,3.41343842,194.56,194.55,8.3501144]
[1755256990427,4.11343842,194.56,194.55,0.03]
[1755256990850,3.41343842,194.56,194.55,0.03]
[1755256991345,3.41343842,194.56,194.55,8.3501144]
[1755256991643,4.11343842,194.56,194.55,0.03]
[1755256992045,3.41343842,194.56,194.55,8.3501144]
[1755256993242,4.11343842,194.56,194.55,8.3501144]
[1755256993434,4.11343842,194.56,194.55,0.03]
[1755256993939,9.25324105,194.56,194.55,0.03]
[1755256994145,4.11343842,194.56,194.53,0.03]
[1755256994327,8.39894421,194.55,194.53,0.03]
[1755256994655,3.41343842,194.54,194.53,0.03]
[1755256994857,4.11343842,194.54,194.53,0.03]
[1755256995950,4.11343842,194.54,194.53,8.3501144]
[1755256995951,3.41343842,194.54,194.53,8.3501144]
[1755256996336,3.41343842,194.54,194.53,0.03]
[1755256996847,3.41343842,194.54,194.53,8.3501144]
[1755256998746,3.41343842,194.54,194.53,0.03]
[1755256998945,4.11343842,194.54,194.53,0.03]
[1755256999465,3.41343842,194.54,194.53,0.03]
[1755256999639,3.41343842,194.54,194.53,8.3501144]
[1755257000740,3.41343842,194.54,194.53,13.49070968]
[1755257003634,3.41343842,194.54,194.53,0.03]
[1755257003840,4.11343842,194.54,194.53,0.03]
[1755257005080,4.11343842,194.54,194.53,8.3501144]
[1755257005560,4.11343842,194.54,194.53,0.03]
[1755257005765,4.11343842,194.54,194.53,8.3501144]
[1755257008169,4.11343842,194.54,194.53,0.03]
[1755257008374,58.19938964,194.54,194.51,0.03]
[1755257008673,12.43355282,194.53,194.51,0.03]
[1755257008874,3.41343842,194.52,194.51,0.03]
[1755257009056,4.11343842,194.52,194.51,0.03]
[1755257010372,21.85991816,194.52,194.51,0.03]
[1755257011545,13.53980376,194.52,194.51,0.03]
[1755257011865,21.85991816,194.52,194.51,0.03]
[1755257013176,13.53980376,194.52,194.51,0.03]
[1755257013351,17.34805815,194.52,194.51,0.03]
[1755257014084,25.66817255,194.52,194.51,0.03]
[1755257014458,13.06255236,194.52,194.51,0.03]
[1755257014851,144.96255236,194.52,194.51,0.03]
[1755257015982,153.28266676,194.52,194.51,0.03]
[1755257016179,26.0,194.5,194.49,0.03]
[1755257016483,74.07355282,194.5,194.49,0.03]
[1755257016808,74.73355282,194.5,194.49,0.03]
[1755257017364,79.87494099,194.5,194.49,0.03]
[1755257018288,109.87494099,194.5,194.49,0.03]
[1755257018882,60.07343842,194.5,194.49,0.03]
[1755257019185,101.55482659,194.5,194.49,0.03]
[1755257019482,71.55482659,194.5,194.49,0.03]
[1755257019653,79.87494099,194.5,194.49,0.03]
[1755257020283,79.87494099,194.5,194.47,0.03]
[1755257020468,8.3201144,194.48,194.47,0.03]
[1755257020675,48.07355282,194.48,194.47,0.03]
[1755257020874,48.73355282,194.48,194.47,0.03]
[1755257021490,53.87546972,194.48,194.47,0.03]
[1755257022379,83.87546972,194.48,194.47,0.03]
[1755257022565,53.87546972,194.48,194.47,0.03]
[1755257023486,39.75343842,194.48,194.47,0.03]
[1755257024073,3.41343842,194.48,194.47,0.03]
[1755257024275,39.75343842,194.48,194.47,0.03]
[1755257024478,40.41343842,194.48,194.47,0.03]
[1755257026161,45.55535532,194.48,194.47,0.03]
[1755257026382,53.87546972,194.48,194.47,0.03]
[1755257027487,40.41343842,194.48,194.47,0.03]
[1755257027694,39.75343842,194.48,194.47,0.03]
[1755257028191,69.75343842,194.48,194.47,0.03]
[1755257028593,26.0,194.49,194.47,0.03]
[1755257028594,36.34,194.49,194.47,8.5401144]
[1755257028768,36.34,194.49,194.48,8.3201144]
[1755257029302,36.34,194.49,194.47,8.3501144]
[1755257029794,0.66,194.48,194.47,0.03]
[1755257029968,4.07488267,194.48,194.47,0.03]
[1755257030169,17.53691397,194.48,194.47,0.03]
[1755257030589,47.53691397,194.48,194.43,0.03]
[1755257030891,40.43488267,194.47,194.43,0.03]
[1755257031092,8.3201144,194.45,194.43,0.03]
[1755257031294,39.77488267,194.44,194.43,0.03]
[1755257031469,40.43488267,194.44,194.43,0.03]
[1755257031981,48.75499707,194.44,194.43,0.03]
[1755257032175,53.89797176,194.44,194.32,0.22]
[1755257032386,12.39499707,194.43,194.36,8.3201144]
[1755257032591,4.07488267,194.42,194.36,8.3201144]
[1755257032774,39.79488267,194.41,194.36,8.3201144]
[1755257032969,3.41488267,194.4,194.36,8.3201144]
[1755257033166,36.38,194.39,194.34,5.14559408]
[1755257033396,3.41287491,194.38,194.36,8.3201144]
[1755257033572,36.38,194.37,194.36,8.3201144]
[1755257033772,36.38,194.37,194.35,8.3201144]
[1755257034180,36.38,194.37,194.33,12.24665463]
[1755257034385,36.38,194.37,194.35,8.3201144]
[1755257034580,36.38,194.37,194.33,7.10078427]
[1755257034581,0.66,194.36,194.33,7.10078427]
[1755257034886,37.04,194.35,194.33,7.10078427]
[1755257035086,36.38,194.35,194.33,7.10078427]
[1755257035597,36.38,194.35,194.32,8.3201144]
[1755257035798,36.38,194.35,194.33,8.3201144]
[1755257036499,3.40477937,194.34,194.31,8.3201144]
[1755257036699,3.40477937,194.34,194.29,0.25]
[1755257036700,3.40477937,194.34,194.32,8.3201144]
[1755257037207,3.40477937,194.34,194.29,5.39691742]
[1755257037379,36.4,194.33,194.29,5.39691742]
[1755257037578,36.4,194.33,194.32,8.3201144]
[1755257037989,0.66,194.38,194.32,8.5701144]
[1755257038300,39.78308989,194.37,194.35,8.3201144]
[1755257038504,3.40308989,194.36,194.35,8.3201144]
[1755257038889,3.40308989,194.37,194.35,8.3201144]
[1755257039112,39.80308989,194.36,194.34,0.25]
[1755257039279,36.4,194.37,194.35,8.3201144]
[1755257039478,36.4,194.37,194.34,0.25]
[1755257040094,36.4,194.37,194.33,5.14588586]
[1755257040302,36.4,194.37,194.34,0.25]
[1755257040506,36.4,194.37,194.36,13.46520598]
[1755257040887,136.88417675,194.45,194.36,13.71520598]
[1755257041217,39.82170123,194.44,194.37,0.25]
[1755257041380,3.40170123,194.43,194.37,0.25]
[1755257041580,3.40170123,194.42,194.37,0.25]
[1755257041827,36.42,194.44,194.38,0.25]
[1755257042014,3.40212808,194.43,194.38,0.25]
[1755257042213,3.40212808,194.42,194.38,0.25]
[1755257042508,36.42,194.44,194.4,8.3201144]
[1755257042509,4.11194826,194.41,194.4,8.3201144]
[1755257042698,0.71,194.42,194.4,8.3201144]
[1755257042902,39.82194826,194.41,194.36,5.14509158]
[1755257043101,36.42,194.41,194.4,8.3201144]
[1755257043304,39.82217434,194.41,194.4,8.3201144]
[1755257043507,39.82217434,194.41,194.36,5.14509158]
[1755257043703,36.42,194.41,194.36,5.14509158]
[1755257043908,3.40027905,194.4,194.36,5.39509158]
[1755257044211,4.27417675,194.45,194.39,8.3201144]
[1755257044384,30.98417675,194.47,194.44,8.3201144]
[1755257044581,40.53085495,194.46,194.45,8.3201144]
[1755257045009,40.53085495,194.46,194.39,0.25]
[1755257045205,3.40085495,194.45,194.44,8.3201144]
[1755257046710,3.40085495,194.45,194.44,13.46308909]
[1755257047703,0.71,194.51,194.44,13.71308909]
[1755257048014,39.84341429,194.5,194.44,5.39297469]
[1755257048221,36.44,194.5,194.44,5.39297469]
[1755257049195,36.44,194.5,194.49,8.3201144]
[1755257049395,39.8447055,194.5,194.49,8.3201144]
[1755257049821,40.5547055,194.5,194.49,8.3201144]
[1755257050026,39.8447055,194.5,194.49,8.3201144]
[1755257050930,3.4047055,194.5,194.49,8.3201144]
[1755257051238,39.8247055,194.51,194.49,13.46164763]
[1755257051416,0.06,194.53,194.5,8.3201144]
[1755257051614,0.06,194.53,194.52,8.3201144]
[1755257051809,4.17618831,194.53,194.52,8.3201144]
[1755257052025,40.59618831,194.53,194.52,8.3201144]
[1755257052633,3.46618831,194.53,194.52,8.3201144]
[1755257052819,0.06,194.53,194.52,13.71097395]
[1755257053009,0.06,194.55,194.52,13.71097395]
[1755257053331,0.06,194.55,194.54,8.3201144]
[1755257053829,0.06,194.57,194.54,8.5701144]
[1755257054030,0.06,194.59,194.56,8.3201144]
[1755257054231,0.06,194.59,194.58,8.3201144]
[1755257054607,0.06,194.59,194.58,13.71360917]
[1755257054820,0.06,194.59,194.58,13.46360917]
[1755257055939,0.77,194.59,194.58,13.46360917]
[1755257056140,0.77,194.59,194.53,26.0]
[1755257056311,0.77,194.59,194.54,13.46360917]
[1755257056312,39.84342827,194.58,194.54,13.46360917]
[1755257056516,17.57703744,194.57,194.51,13.46360917]
[1755257056731,4.11342827,194.56,194.51,13.46360917]
[1755257056930,4.11342827,194.56,194.44,0.25]
[1755257056931,9.25372786,194.55,194.44,5.39296977]
[1755257057126,54.03703744,194.54,194.48,13.46360917]
[1755257057333,4.11342827,194.53,194.48,13.46360917]
[1755257057640,4.11342827,194.52,194.49,13.46360917]
[1755257057810,0.71,194.51,194.49,13.46360917]
[1755257058142,40.57342827,194.5,194.45,13.46360917]
[1755257058341,4.11342827,194.49,194.46,13.46360917]
[1755257058538,0.71,194.48,194.45,13.46360917]
[1755257058709,3.40342827,194.47,194.44,13.46360917]
[1755257058909,4.11342827,194.49,194.46,13.46360917]
[1755257059137,39.88342827,194.48,194.47,13.46360917]
[1755257059322,40.58981145,194.48,194.43,13.46360917]
[1755257059522,17.57342062,194.47,194.41,13.46360917]
[1755257059739,36.48,194.48,194.39,13.46360917]
[1755257059740,13.46360917,194.45,194.39,13.46360917]
[1755257059934,54.11342062,194.44,194.38,13.49360917]
[1755257060133,26.0,194.41,194.38,0.03]
[1755257060333,36.56,194.4,194.38,0.03]
[1755257060631,3.39789221,194.39,194.38,0.03]
[1755257060837,9.25218975,194.39,194.38,0.03]
[1755257061733,22.71579892,194.39,194.38,0.03]
[1755257061939,9.25218975,194.39,194.38,0.03]
[1755257062112,11.31367375,194.39,194.38,0.03]
[1755257063019,4.10789221,194.39,194.38,0.03]
[1755257063220,37.31,194.39,194.38,0.03]
[1755257063514,0.71,194.42,194.38,13.49360917]
[1755257063837,2.061165,194.42,194.41,13.46360917]
[1755257064137,36.6,194.43,194.41,13.46360917]
[1755257064319,3.39765992,194.42,194.38,0.28]
[1755257064517,36.6,194.43,194.41,13.46360917]
[1755257064717,36.6,194.43,194.42,13.46360917]
[1755257064940,39.99797681,194.43,194.42,13.46360917]
[1755257065612,13.463609,194.48,194.42,18.60711292]
[1755257065831,39.99827625,194.47,194.45,13.46360917]
[1755257066013,3.39827625,194.46,194.45,13.46360917]
[1755257066211,36.6,194.47,194.45,13.46360917]
[1755257066434,36.6,194.47,194.4,0.25]
[1755257066636,4.10629495,194.46,194.43,13.46360917]
[1755257066827,0.71,194.45,194.43,13.46360917]
[1755257067029,0.71,194.44,194.43,13.46360917]
[1755257067338,37.31,194.44,194.43,13.46360917]
[1755257068032,36.6,194.44,194.43,13.46360917]
[1755257068435,36.6,194.44,194.4,5.14400632]
[1755257068613,36.6,194.44,194.39,5.14427836]
[1755257068809,36.6,194.44,194.38,0.03]
[1755257068810,36.6,194.44,194.43,13.46360917]
[1755257069014,36.6,194.44,194.43,18.60684838]
[1755257070120,36.6,194.44,194.41,5.14352589]
[1755257070327,36.6,194.44,194.43,13.46360917]
[1755257073031,37.26,194.44,194.43,13.46360917]
[1755257074030,37.26,194.44,194.42,13.46360917]
[1755257074353,0.66,194.43,194.42,13.46360917]
[1755257074732,0.66,194.48,194.42,18.60705085]
[1755257074939,36.56,194.47,194.46,13.46360917]
[1755257075253,39.95553929,194.47,194.42,5.14344168]
[1755257075445,37.22,194.47,194.46,13.46360917]
[1755257075850,36.56,194.47,194.46,13.46360917]
[1755257076155,36.56,194.47,194.42,5.14344168]
[1755257076338,36.56,194.47,194.46,13.46360917]
[1755257076652,66.56,194.47,194.46,13.46360917]
[1755257077147,66.56,194.47,194.4,0.03]
[1755257077148,37.22,194.47,194.44,13.46360917]
[1755257077452,0.66,194.46,194.44,13.46360917]
[1755257077760,0.66,194.45,194.44,13.46360917]
[1755257078257,36.56,194.47,194.44,13.46360917]
[1755257078459,37.22,194.47,194.45,13.46360917]
[1755257078830,0.66,194.46,194.45,13.46360917]
[1755257079659,131.9,194.5,194.45,13.46360917]
[1755257079843,131.9,194.5,194.49,13.46360917]
[1755257080033,171.85720494,194.5,194.49,13.46360917]
[1755257080237,172.51720494,194.5,194.49,13.46360917]
[1755257081047,202.51720494,194.5,194.49,13.46360917]
[1755257081445,172.51720494,194.5,194.49,13.46360917]
[1755257088256,171.85720494,194.5,194.49,13.46360917]
[1755257088453,172.51720494,194.5,194.49,13.46360917]
[1755257090662,172.51720494,194.5,194.49,8.3297935]
[1755257095767,172.51720494,194.5,194.48,8.3297935]
[1755257095967,3.39720494,194.49,194.48,8.3297935]
[1755257096466,169.12,194.5,194.48,8.3297935]
[1755257096663,131.9,194.5,194.49,8.3297935]
[1755257096865,171.74309116,194.5,194.49,8.3297935]
[1755257100653,40.50309116,194.5,194.49,8.3297935]
[1755257101774,40.50309116,194.5,194.49,8.3597935]
[1755257102467,45.64447933,194.5,194.49,0.03]
[1755257104049,53.97427283,194.5,194.49,0.03]
[1755257104259,58.24844958,194.5,194.49,0.03]
[1755257104778,66.82774326,194.5,194.45,0.03]
[1755257104976,8.3297935,194.48,194.45,0.03]
[1755257105278,8.36867985,194.49,194.45,0.03]
[1755257105279,39.82309116,194.47,194.45,0.03]
[1755257105456,3.40309116,194.46,194.45,0.03]
[1755257105656,4.10309116,194.46,194.45,0.03]
[1755257105852,9.2455369,194.46,194.45,0.03]
[1755257106388,45.6655369,194.46,194.45,0.03]
[1755257108762,39.82309116,194.46,194.45,0.03]
[1755257108974,39.82309116,194.46,194.45,8.3597935]
[1755257109362,39.82309116,194.46,194.45,0.03]
[1755257111992,40.52309116,194.46,194.45,0.03]
[1755257112183,37.12,194.46,194.45,0.03]
[1755257112372,40.54044472,194.46,194.45,0.03]
[1755257112869,45.68289046,194.46,194.45,0.03]
[1755257113689,40.54044472,194.46,194.45,0.03]
[1755257120062,39.84044472,194.46,194.45,0.03]
[1755257120863,40.54044472,194.46,194.45,0.03]
[1755257122793,40.54044472,194.46,194.45,8.6097935]
[1755257122794,3.42044472,194.46,194.45,8.6097935]
[1755257123185,3.42044472,194.46,194.45,8.3597935]
[1755257123687,4.12044472,194.46,194.45,0.03]
[1755257124283,9.26289046,194.46,194.45,0.03]
[1755257124663,21.86823986,194.46,194.45,0.03]
[1755257125166,26.0,194.44,194.43,0.03]
[1755257125389,77.9316197,194.44,194.41,0.03]
[1755257125569,12.60454465,194.42,194.4,0.03]
[1755257125766,48.13023822,194.41,194.4,0.03]
[1755257125966,45.64421304,194.41,194.4,0.03]
[1755257128290,39.80044472,194.41,194.4,0.03]
[1755257128493,45.64421304,194.41,194.4,0.03]
[1755257128788,53.97400654,194.41,194.4,0.03]
[1755257129268,58.24875769,194.41,194.4,0.03]
[1755257129674,88.24875769,194.41,194.4,0.03]
[1755257130693,58.24875769,194.41,194.4,0.03]
[1755257131497,53.97400654,194.41,194.4,0.03]
[1755257131692,49.21896419,194.41,194.4,0.03]
[1755257131998,58.24875769,194.41,194.4,0.03]
[1755257132495,53.97400654,194.41,194.4,0.03]
[1755257134088,45.64421304,194.41,194.4,0.03]
[1755257134294,53.97400654,194.41,194.4,0.03]
[1755257134970,83.97400654,194.41,194.4,0.03]
[1755257135184,53.97400654,194.41,194.4,0.03]
[1755257136909,83.97400654,194.41,194.4,0.03]
[1755257137400,33.42044472,194.41,194.4,0.03]
[1755257137587,39.80044472,194.41,194.4,0.03]
[1755257137793,48.83023822,194.41,194.4,0.03]
[1755257138796,53.97400654,194.41,194.4,0.03]
[1755257139600,56.03538454,194.41,194.4,0.03]
[1755257140786,86.03538454,194.41,194.4,0.03]
[1755257141021,90.31013569,194.41,194.4,0.03]
[1755257141307,89.8152465,194.41,194.39,1e-08]
[1755257141513,12.45023822,194.4,194.38,1e-08]
[1755257141678,108.48176281,194.39,194.38,1e-08]
[1755257141881,109.18176281,194.39,194.38,1e-08]
[1755257142096,79.18176281,194.39,194.38,1e-08]
[1755257142301,26.0,194.37,194.36,0.03]
[1755257142490,26.0,194.35,194.25,0.2]
[1755257142790,70.14849317,194.35,194.25,0.2]
[1755257142984,79.17828667,194.35,194.25,8.5297935]
[1755257143280,87.81807967,194.35,194.26,0.31]
[1755257144005,29.42044472,194.35,194.31,8.6397935]
[1755257144194,65.90044472,194.35,194.32,0.31]
[1755257144503,65.90044472,194.35,194.25,5.34796671]
[1755257144504,80.07559453,194.35,194.28,0.31]
[1755257144907,80.07559453,194.35,194.25,13.98772863]
[1755257145086,80.07559453,194.35,194.25,13.67772863]
[1755257145282,80.07559453,194.35,194.25,0.2]
[1755257145283,88.38273253,194.35,194.25,0.2]
[1755257145498,8.3297935,194.27,194.25,0.2]
[1755257145703,36.56,194.26,194.25,0.2]
[1755257145900,8.3297935,194.3,194.25,0.54]
[1755257146083,36.56,194.29,194.25,0.54]
[1755257146283,3.39521439,194.28,194.25,0.54]
[1755257146504,36.56,194.27,194.25,0.54]
[1755257146809,36.56,194.27,194.25,0.2]
[1755257147309,5.14698999,194.29,194.25,0.2]
[1755257147514,25.40324478,194.52,194.25,0.2]
[1755257147515,36.56,194.28,194.27,8.3297935]
[1755257147811,36.56,194.28,194.27,8.6697935]
[1755257148006,36.56,194.29,194.27,0.34]
[1755257148213,36.56,194.29,194.26,8.3297935]
[1755257148512,36.56,194.29,194.25,0.54]
[1755257148513,41.70701186,194.29,194.25,0.54]
[1755257148692,36.56,194.29,194.26,8.6697935]
[1755257151094,36.56,194.29,194.25,8.5297935]
[1755257151291,36.56,194.29,194.25,8.8697935]
[1755257152007,36.56,194.29,194.27,0.03]
[1755257152498,42.40704876,194.29,194.27,0.03]
[1755257152815,37.26,194.29,194.27,0.03]
[1755257153203,36.56,194.29,194.27,0.03]
[1755257156009,3.384847,194.28,194.27,0.03]
[1755257156316,3.384847,194.28,194.26,7.8597935]
[1755257156517,36.52,194.27,194.26,7.8597935]
[1755257157824,36.52,194.27,194.25,5.30500287]
[1755257157999,36.52,194.27,194.26,8.3297935]
[1755257160621,36.52,194.27,194.26,13.47753364]
[1755257160793,131.9,194.31,194.26,13.81753364]
[1755257161001,36.5,194.29,194.27,8.3297935]
[1755257161197,4.9595525,194.33,194.28,8.3297935]
[1755257161400,3.38720551,194.32,194.29,0.34]
[1755257161717,0.06,194.34,194.31,8.3297935]
[1755257162031,0.06,194.34,194.33,8.3297935]
[1755257162418,0.06,194.34,194.33,13.47567936]
[1755257163903,0.06,194.34,194.33,13.81567936]
[1755257165119,37.3,194.34,194.27,0.34]
[1755257165308,4.11175571,194.33,194.29,8.3297935]
[1755257165502,36.58,194.34,194.29,8.3297935]
[1755257165714,0.72,194.32,194.29,8.3297935]
[1755257166101,4.11386338,194.31,194.27,8.3297935]
[1755257166421,36.56,194.31,194.3,8.3297935]
[1755257166598,0.06,194.34,194.3,8.6697935]
[1755257166795,0.06,194.34,194.33,8.3297935]
[1755257168223,0.06,194.34,194.31,5.1463731]
[1755257168527,0.06,194.34,194.33,8.3297935]
[1755257168839,3.46087326,194.34,194.33,8.3297935]
[1755257169921,3.46087326,194.34,194.3,5.14668039]
[1755257170113,0.78,194.34,194.33,8.3297935]
[1755257170312,3.46281015,194.34,194.33,8.3297935]
[1755257170824,3.46281015,194.34,194.3,5.14668039]
[1755257170998,0.06,194.34,194.33,8.3297935]
[1755257171201,3.46351941,194.34,194.33,8.3297935]
[1755257176519,0.06,194.34,194.29,0.34]
[1755257176728,0.06,194.34,194.33,8.3297935]
[1755257177449,0.06,194.34,194.33,8.6697935]
[1755257178544,0.78,194.34,194.28,2.060846]
[1755257178722,0.78,194.34,194.3,8.3297935]
[1755257178916,0.72,194.33,194.3,8.3297935]
[1755257180017,0.72,194.32,194.29,8.3297935]
[1755257180421,4.12760668,194.32,194.29,8.3297935]
[1755257180830,0.72,194.31,194.28,8.3297935]
[1755257182833,4.12871971,194.3,194.27,8.3297935]
[1755257183043,0.72,194.3,194.27,8.3297935]
[1755257183348,3.40872555,194.32,194.29,8.3297935]